fUSD/lending_fUSD_20250423
["ID","MTS","AMOUNT","RATE_DAILY","PERIOD"]
[358734487,1745406645975,-151.0,0.00043836,14]
[358734489,1745406645985,-2436.382727,0.00043836,14]
[358734491,1745406645994,-151.0,0.00043836,14]
[358734493,1745406646003,-2436.382727,0.00043836,14]
[358734494,1745406646013,-151.0,0.00043836,14]
[358734496,1745406646023,-151.0,0.00043836,14]
[358734498,1745406646033,-300.3824,0.00043836,14]
[358734500,1745406646044,-151.0,0.00043836,14]
[358734502,1745406646055,-151.0,0.00043836,14]
[358734503,1745406646064,-160.254056,0.00043836,14]
[358734505,1745406646073,-160.254056,0.00043836,14]
[358734507,1745406646083,-151.0,0.00043836,14]
[358734509,1745406646092,-423.954629,0.00043836,14]
[358734510,1745406646101,-423.954629,0.00043836,14]
[358734513,1745406646111,-151.0,0.00043836,14]
[358734516,1745406646121,-366.755139,0.00043836,14]
[358734517,1745406646130,-366.755139,0.00043836,14]
[358734519,1745406646139,-151.0,0.00043836,14]
[358734521,1745406646149,-434.891262,0.00043836,14]
[358734523,1745406646159,-434.891262,0.00043836,14]
[358734524,1745406646170,-151.071067,0.00043836,14]
[358734526,1745406646180,-151.071067,0.00043836,14]
[358734528,1745406646189,-151.0,0.00043836,14]
[358734530,1745406646199,-151.0,0.00043836,14]
[358734531,1745406646210,-151.0,0.00043836,14]
[358734533,1745406646219,-151.0,0.00043836,14]
[358734535,1745406646228,-515.10582982,0.00043836,31]
[358734537,1745406646238,-515.10582982,0.00043836,31]
[358734538,1745406646247,-515.10582982,0.00043836,31]
[358734540,1745406646257,-515.10582982,0.00043836,31]
[358734542,1745406646267,-515.10582982,0.00043836,31]
[358734544,1745406646276,-515.10582982,0.00043836,31]
[358734545,1745406646285,-515.10582982,0.00043836,31]
[358734547,1745406646295,-515.10582982,0.00043836,31]
[358734549,1745406646306,-515.10582982,0.00043836,31]
[358734551,1745406646315,-515.10582982,0.00043836,31]
[358734552,1745406646325,-515.10582982,0.00043836,31]
[358734554,1745406646336,-515.10582982,0.00043836,31]
[358734556,1745406646345,-515.10582982,0.00043836,31]
[358734558,1745406646354,-515.10582982,0.00043836,31]
[358734559,1745406646364,-515.10582982,0.00043836,31]
[358734561,1745406646373,-515.10582982,0.00043836,31]
[358734563,1745406646382,-234.635907,0.00043836,14]
[358734565,1745406646391,-547.88529171,0.00043836,31]
[358734567,1745406646401,-547.88529171,0.00043836,31]
[358734568,1745406646410,-547.88529171,0.00043836,31]
[358734570,1745406646419,-547.88529171,0.00043836,31]
[358734572,1745406646428,-547.88529171,0.00043836,31]
[358734574,1745406646438,-547.88529171,0.00043836,31]
[358734575,1745406646448,-547.88529171,0.00043836,31]
[358734577,1745406646457,-547.88529171,0.00043836,31]
[358734579,1745406646467,-547.88529171,0.00043836,31]
[358734581,1745406646476,-630.06808549,0.00043836,31]
[358734583,1745406646485,-238.77858,0.00043836,14]
[358734584,1745406646495,-502.096605,0.00043836,14]
[358734586,1745406646504,-502.096605,0.00043836,14]
[358734588,1745406646513,-1330.912874,0.00043836,14]
[358734590,1745406646522,-1330.912874,0.00043836,14]
[358734591,1745406646531,-519.577272,0.00043836,14]
[358734593,1745406646540,-519.577272,0.00043836,14]
[358734595,1745406646550,-1067.258309,0.00043836,14]
[358734597,1745406646559,-1067.258309,0.00043836,14]
[358734598,1745406646568,-991.327372,0.00043836,14]
[358734600,1745406646578,-991.327372,0.00043836,14]
[358734602,1745406646587,-151.0,0.00043836,14]
[358734604,1745406646596,-154.333565,0.00043836,14]
[358734606,1745406646605,-734.670196,0.00043836,14]
[358734607,1745406646614,-734.670196,0.00043836,14]
[358734609,1745406646624,-233.281804,0.00043836,14]
[358734611,1745406646633,-233.281804,0.00043836,14]
[358734613,1745406646643,-346.6187,0.00043836,14]
[358734614,1745406646652,-346.6187,0.00043836,14]
[358734616,1745406646661,-151.838224,0.00043836,14]
[358734618,1745406646670,-307.395084,0.00043836,14]
[358734620,1745406646679,-307.395084,0.00043836,14]
[358734622,1745406646688,-151.0,0.00043836,14]
[358734624,1745406646697,-152.621675,0.00043836,14]
[358734626,1745406646707,-151.0,0.00043836,14]
[358734628,1745406646716,-151.0,0.00043836,14]
[358734630,1745406646725,-906.493183,0.00043836,14]
[358734632,1745406646735,-906.493183,0.00043836,14]
[358734634,1745406646744,-151.0,0.00043836,14]
[358734636,1745406646754,-151.0,0.00043836,14]
[358734638,1745406646764,-739.994026,0.00043836,14]
[358734640,1745406646773,-200.0,0.00043836,30]
[358734642,1745406646783,-739.994026,0.00043836,14]
[358734644,1745406646792,-500.0,0.00043836,30]
[358734646,1745406646801,-500.0,0.00043836,30]
[358734648,1745406646811,-207.4,0.00043836,30]
[358734650,1745406646819,-518.5,0.00043836,30]
[358734651,1745406646829,-500.0,0.00043836,30]
[358734652,1745406646837,-215.0738,0.00043836,30]
[358734653,1745406646847,-537.6845,0.00043836,30]
[358734654,1745406646856,-500.0,0.00043836,30]
[358734655,1745406646865,-223.0315306,0.00043836,30]
[358734656,1745406646874,-557.5788265,0.00043836,30]
[358734657,1745406646884,-500.0,0.00043836,30]
[358734658,1745406646893,-231.28369723,0.00043836,30]
[358734659,1745406646902,-578.20924308,0.00043836,30]
[358734660,1745406646911,-500.0,0.00043836,30]
[358734661,1745406646920,-239.84119403,0.00043836,30]
[358734662,1745406646930,-599.60298507,0.00043836,30]
[358734663,1745406646939,-500.0,0.00043836,30]
[358734664,1745406646948,-248.71531821,0.00043836,30]
[358734665,1745406646957,-621.78829552,0.00043836,30]
[358734666,1745406646967,-500.0,0.00043836,30]
[358734667,1745406646976,-257.91778498,0.00043836,30]
[358734668,1745406646984,-644.79446246,0.00043836,30]
[358734669,1745406646994,-500.0,0.00043836,30]
[358734670,1745406647003,-267.46074303,0.00043836,30]
[358734671,1745406647011,-500.0,0.00043836,30]
[358734672,1745406647021,-277.35679052,0.00043836,30]
[358734673,1745406647030,-668.65185757,0.00043836,30]
[358734674,1745406647039,-500.0,0.00043836,30]
[358734675,1745406647049,-693.3919763,0.00043836,30]
[358734676,1745406647058,-500.0,0.00043836,30]
[358734677,1745406647067,-287.61899177,0.00043836,30]
[358734678,1745406647078,-910.87510724,0.00043836,30]
[358734679,1745406647087,-500.0,0.00043836,30]
[358734680,1745406647096,-298.26089446,0.00043836,30]
[358734682,1745406647105,-500.0,0.00043836,30]
[358734683,1745406647114,-309.29654756,0.00043836,30]
[358734685,1745406647124,-500.0,0.00043836,30]
[358734686,1745406647133,-320.74051982,0.00043836,30]
[358734688,1745406647143,-529.58832627,0.00043836,30]
[358734690,1745406647155,-332.60791905,0.00043836,30]
[358734692,1745406647169,-567.69467571,0.00043836,30]
[358734694,1745406647182,-344.91441206,0.00043836,30]
[358734696,1745406647196,-357.6762453,0.00043836,30]
[358734698,1745406647206,-370.91026638,0.00043836,30]
[358734700,1745406647221,-384.63394623,0.00043836,30]
[358734702,1745406647236,-600.0,0.00043836,30]
[358734704,1745406647247,-303.29175541,0.00043836,30]
[358734706,1745406647258,-812.150708,0.00043836,14]
[358734708,1745406647269,-151.418341,0.00043836,14]
[358734710,1745406647279,-812.150708,0.00043836,14]
[358734712,1745406647290,-7097.485015,0.00043836,14]
[358734714,1745406647301,-7097.485015,0.00043836,14]
[358734717,1745406647313,-248.771976,0.00043836,14]
[358734719,1745406647324,-248.771976,0.00043836,14]
[358734721,1745406647335,-151.0,0.00043836,14]
[358734723,1745406647345,-151.0,0.00043836,14]
[358734725,1745406647356,-153.778021,0.00043836,14]
[358734727,1745406647365,-151.0,0.00043836,14]
[358734729,1745406647375,-151.0,0.00043836,14]
[358734731,1745406647384,-295.016817,0.00043836,14]
[358734733,1745406647394,-295.016817,0.00043836,14]
[358734735,1745406647403,-151.0,0.00043836,14]
[358734737,1745406647414,-155.060244,0.00043836,14]
[358734739,1745406647424,-200.0,0.00043836,7]
[358734741,1745406647433,-151.610495,0.00043836,14]
[358734743,1745406647442,-1423.1763,0.00043888,30]
[358734745,1745406647452,-221406.0,0.00044,5]
[358734747,1745406647462,-10072.82085335,0.00044,20]
[358734749,1745406647471,-4143.68,0.00044,14]
[358734751,1745406647481,-807.52,0.00044,2]
[358734753,1745406647491,-900.0,0.00044009,120]
[358734756,1745406647501,-213.0,0.0004406,30]
[358734758,1745406647510,-150.0,0.00044124,2]
[358734760,1745406647520,-500.0,0.0004421,120]
[358734762,1745406647529,-4844.49191971,0.0004421,18]
[358734764,1745406647538,-2110.0,0.00044249,30]
[358734766,1745406647547,-900.0,0.00044283,120]
[358734768,1745406647558,-166.66,0.00044318,2]
[358734770,1745406647567,-166.66111111,0.00044384,30]
[358734772,1745406647577,-399.87619122,0.00044384,30]
[358734774,1745406647586,-765.3986528,0.00044408,4]
[358734776,1745406647596,-8128.03443241,0.000445,120]
[358734778,1745406647605,-800.0,0.00044557,120]
[358734780,1745406647615,-399.87619122,0.00044575,30]
[358734782,1745406647625,-166.66111111,0.0004463,30]
[358734784,1745406647634,-151.0,0.00044658,14]
[358734786,1745406647644,-151.0,0.00044658,14]
[358734788,1745406647653,-193.515066,0.00044658,14]
[358734790,1745406647663,-151.0,0.00044658,14]
[358734792,1745406647672,-193.515066,0.00044658,14]
[358734794,1745406647681,-378.39374244,0.00044659,2]
[358734796,1745406647691,-263.51781613,0.0004469,10]
[358734798,1745406647701,-514.13189869,0.000447,120]
[358734800,1745406647710,-399.87619122,0.0004474,30]
[358734802,1745406647719,-2110.0,0.00044749,30]
[358734804,1745406647729,-900.0,0.00044831,120]
[358734806,1745406647738,-584.922546,0.0004485,120]
[358734808,1745406647747,-500.0,0.00044876,30]
[358734810,1745406647756,-166.66111111,0.00044877,30]
[358734813,1745406647766,-4143.68,0.000449,14]
[358734815,1745406647775,-399.87619122,0.00044932,30]
[358734817,1745406647785,-245.795153,0.00044948,14]
[358734819,1745406647794,-150.0,0.00044989,2]
[358734821,1745406647805,-50000.0,0.00045,2]
[358734823,1745406647815,-151.0,0.00045,120]
[358734825,1745406647824,-17668.89440459,0.00045,30]
[358734827,1745406647833,-524.02988342,0.00045,4]
[358734829,1745406647842,-151.0,0.00045,14]
[358734831,1745406647851,-226.878664,0.00045,14]
[358734833,1745406647860,-151.0,0.00045,14]
[358734835,1745406647870,-151.0,0.00045,14]
[358734837,1745406647879,-241.138961,0.00045,14]
[358734839,1745406647888,-241.138961,0.00045,14]
[358734841,1745406647897,-332.245943,0.00045,14]
[358734843,1745406647907,-332.245943,0.00045,14]
[358734845,1745406647916,-6500.0,0.00045,3]
[358734847,1745406647926,-850.0,0.00045,2]
[358734849,1745406647935,-213.0,0.0004506,30]
[358734851,1745406647945,-211.0,0.0004506,30]
[358734853,1745406647954,-399.87619122,0.00045096,30]
[358734855,1745406647963,-800.0,0.00045105,120]
[358734857,1745406647972,-4844.49191971,0.00045107,18]
[358734859,1745406647982,-166.66111111,0.00045123,30]
[358734861,1745406647991,-150.0,0.00045191,120]
[358734863,1745406648000,-150.0,0.00045205,120]
[358734865,1745406648010,-3567.2,0.00045205,120]
[358734867,1745406648020,-151.0,0.00045205,14]
[358734869,1745406648029,-151.0,0.00045205,14]
[358734871,1745406648039,-151.0,0.00045205,14]
[358734873,1745406648048,-151.0,0.00045205,14]
[358734875,1745406648058,-2110.0,0.00045249,30]
[358734877,1745406648067,-519.577272,0.00045249,14]
[358734879,1745406648077,-519.577272,0.00045249,14]
[358734881,1745406648086,-399.87619122,0.00045288,30]
[358734883,1745406648096,-1410.65,0.00045292,2]
[358734885,1745406648105,-160.0,0.00045308,90]
[358734887,1745406648114,-166.66111111,0.0004537,30]
[358734889,1745406648123,-900.0,0.00045379,120]
[358734891,1745406648132,-399.87619122,0.00045452,30]
[358734893,1745406648141,-4042.82,0.00045523,2]
[358734895,1745406648151,-166.66111111,0.00045616,30]
[358734897,1745406648164,-399.87619122,0.00045644,30]
[358734899,1745406648174,-800.0,0.00045653,120]
[358734901,1745406648183,-151.0,0.00045653,14]
[358734903,1745406648192,-151.0,0.00045653,14]
[358734905,1745406648202,-151.0,0.00045684,14]
[358734907,1745406648212,-151.0,0.00045684,14]
[358734909,1745406648222,-160.254056,0.00045684,14]
[358734911,1745406648232,-160.254056,0.00045684,14]
[358734913,1745406648243,-167.942104,0.00045684,14]
[358734915,1745406648253,-423.954629,0.00045684,14]
[358734917,1745406648262,-423.954629,0.00045684,14]
[358734919,1745406648271,-366.755139,0.00045684,14]
[358734921,1745406648281,-366.755139,0.00045684,14]
[358734923,1745406648291,-151.0,0.00045684,14]
[358734925,1745406648300,-434.891262,0.00045684,14]
[358734927,1745406648309,-434.891262,0.00045684,14]
[358734929,1745406648318,-151.0,0.00045684,14]
[358734931,1745406648329,-194.760697,0.00045684,14]
[358734933,1745406648339,-151.0,0.00045684,14]
[358734935,1745406648349,-238.77858,0.00045684,14]
[358734937,1745406648358,-502.096605,0.00045684,14]
[358734939,1745406648368,-502.096605,0.00045684,14]
[358734941,1745406648378,-1330.912874,0.00045684,14]
[358734943,1745406648388,-1330.912874,0.00045684,14]
[358734945,1745406648398,-1067.258309,0.00045684,14]
[358734947,1745406648408,-1067.258309,0.00045684,14]
[358734949,1745406648418,-991.327372,0.00045684,14]
[358734951,1745406648428,-991.327372,0.00045684,14]
[358734953,1745406648438,-734.670196,0.00045684,14]
[358734955,1745406648448,-734.670196,0.00045684,14]
[358734957,1745406648457,-2116.97932747,0.00045685,17]
[358734959,1745406648467,-166.66,0.00045691,2]
[358734961,1745406648477,-942.583,0.00045694,2]
[358734963,1745406648487,-721.79,0.000457,2]
[358734965,1745406648496,-154.240294,0.00045749,14]
[358734967,1745406648507,-225.746988,0.00045749,14]
[358734969,1745406648516,-2110.0,0.00045749,30]
[358734971,1745406648527,-399.87619122,0.00045808,30]
[358734973,1745406648536,-166.66111111,0.00045836,30]
[358734975,1745406648547,-150.0,0.00045854,2]
[358734977,1745406648557,-4143.68,0.000459,14]
[358734979,1745406648566,-500.0,0.000459,30]
[358734981,1745406648577,-300.63192806,0.000459,3]
[358734983,1745406648586,-900.0,0.00045927,120]
[358734985,1745406648598,-1148.47,0.00045963,30]
[358734987,1745406648608,-16101.91,0.00045999,2]
[358734989,1745406648618,-151.0,0.00045999,14]
[358734991,1745406648628,-151.0,0.00045999,14]
[358734993,1745406648638,-151.0,0.00045999,14]
[358734995,1745406648647,-151.0,0.00045999,14]
[358734997,1745406648657,-50000.0,0.00046,2]
[358734999,1745406648667,-2251.9706223,0.00046,30]
[358735001,1745406648678,-1143.514125,0.00046,2]
[358735003,1745406648689,-5036.45698311,0.00046,120]
[358735005,1745406648699,-399.87619122,0.00046,30]
[358735007,1745406648709,-1995.0,0.00046,30]
[358735009,1745406648721,-151.0,0.00046,14]
[358735011,1745406648732,-151.0,0.00046,14]
[358735014,1745406648742,-151.0,0.00046,14]
[358735016,1745406648752,-151.0,0.00046,14]
[358735018,1745406648763,-151.0,0.00046,14]
[358735020,1745406648774,-151.0,0.00046,14]
[358735022,1745406648785,-500.0,0.00046,30]
[358735024,1745406648796,-1306.445492,0.00046,14]
[358735026,1745406648807,-1306.445492,0.00046,14]
[358735028,1745406648818,-257.821998,0.00046,14]
[358735030,1745406648828,-257.821998,0.00046,14]
[358735032,1745406648839,-240.960835,0.00046,14]
[358735034,1745406648848,-240.960835,0.00046,14]
[358735036,1745406648859,-151.0,0.00046,14]
[358735038,1745406648869,-151.0,0.00046,14]
[358735040,1745406648879,-151.0,0.00046,14]
[358735042,1745406648890,-151.0,0.00046,14]
[358735044,1745406648900,-151.071067,0.00046,14]
[358735046,1745406648911,-151.071067,0.00046,14]
[358735048,1745406648923,-15051.02694059,0.00046,120]
[358735050,1745406648934,-4844.49191971,0.00046003,19]
[358735052,1745406648944,-213.0,0.0004606,30]
[358735054,1745406648955,-211.0,0.0004606,30]
[358735056,1745406648965,-166.66111111,0.00046082,30]
[358735058,1745406648974,-152.0,0.00046114,4]
[358735060,1745406648983,-208.22,0.00046123,15]
[358735062,1745406648993,-399.87619122,0.00046164,30]
[358735064,1745406649002,-800.0,0.00046201,120]
[358735066,1745406649011,-2871.62881871,0.00046223,2]
[358735068,1745406649020,-311946.43822077,0.00046235,2]
[358735070,1745406649030,-5379.64052175,0.00046244,2]
[358735072,1745406649039,-5379.64052175,0.00046247,2]
[358735096,1745406649269,-5379.64052175,0.00046249,2]
[358735098,1745406649281,-2110.0,0.00046249,30]
[358735100,1745406649291,-500.0,0.0004625,30]
[358735103,1745406649304,-22347.75416367,0.00046256,2]
[358735105,1745406649314,-1727.98363455,0.00046256,2]
[358735107,1745406649324,-22347.75416367,0.00046257,2]
[358735108,1745406649334,-5379.64052175,0.00046262,2]
[358735111,1745406649344,-4676.30640074,0.00046269,2]
[358735112,1745406649354,-22347.75416367,0.00046282,2]
[358735114,1745406649364,-311946.43822077,0.00046291,2]
[358735117,1745406649374,-4676.30640074,0.00046295,2]
[358735119,1745406649384,-1727.98363455,0.00046295,2]
[358735120,1745406649394,-707.54,0.00046301,2]
[358735122,1745406649404,-1727.98363455,0.00046302,2]
[358735125,1745406649414,-2871.62881871,0.00046302,2]
[358735127,1745406649425,-150.0,0.00046303,2]
[358735129,1745406649434,-5379.64052175,0.00046304,2]
[358735130,1745406649444,-1727.98363455,0.00046312,2]
[358735133,1745406649454,-765.19629513,0.00046313,2]
[358735134,1745406649464,-4676.30640074,0.00046318,2]
[358735136,1745406649475,-2871.62881871,0.00046324,2]
[358735138,1745406649484,-1727.98363455,0.00046328,2]
[358735140,1745406649494,-166.66111111,0.00046329,30]
[358735143,1745406649503,-4676.30640074,0.00046338,2]
[358735145,1745406649514,-765.19629513,0.00046339,2]
[358735147,1745406649523,-4676.30640074,0.00046346,2]
[358735149,1745406649534,-399.87619122,0.00046356,30]
[358735151,1745406649543,-765.19629513,0.00046359,2]
[358735153,1745406649554,-5379.64052175,0.00046362,2]
[358735155,1745406649564,-1727.98363455,0.00046362,2]
[358735157,1745406649574,-22347.75416367,0.00046366,2]
[358735159,1745406649583,-311946.43822077,0.00046369,2]
[358735161,1745406649593,-765.19629513,0.00046369,2]
[358735163,1745406649603,-22347.75416367,0.00046371,2]
[358735165,1745406649612,-4676.30640074,0.00046374,2]
[358735167,1745406649622,-311946.43822077,0.00046378,2]
[358735169,1745406649632,-1727.98363455,0.00046378,2]
[358735170,1745406649641,-1270.57,0.00046384,15]
[358735173,1745406649651,-5379.64052175,0.00046387,2]
[358735175,1745406649660,-46620.15105921,0.00046398,10]
[358735177,1745406649670,-151.0,0.00046398,14]
[358735179,1745406649680,-237.412467,0.00046398,14]
[358735181,1745406649689,-151.0,0.00046398,14]
[358735183,1745406649699,-151.0,0.00046398,14]
[358735206,1745406649916,-151.0,0.00046398,14]
[358735208,1745406649927,-2436.382727,0.00046398,14]
[358735210,1745406649936,-2436.382727,0.00046398,14]
[358735212,1745406649946,-151.0,0.00046398,14]
[358735214,1745406649956,-151.0,0.00046398,14]
[358735215,1745406649965,-578.35775,0.00046398,2]
[358735217,1745406649975,-578.35775,0.00046398,2]
[358735219,1745406649985,-151.0,0.00046398,14]
[358735221,1745406649995,-151.0,0.00046398,14]
[358735223,1745406650005,-151.0,0.00046398,14]
[358735225,1745406650015,-151.0,0.00046398,14]
[358735227,1745406650024,-285.043713,0.00046398,14]
[358735229,1745406650033,-285.043713,0.00046398,14]
[358735231,1745406650043,-151.0,0.00046398,14]
[358735233,1745406650055,-151.0,0.00046398,14]
[358735235,1745406650065,-152.133378,0.00046398,14]
[358735237,1745406650076,-151.0,0.00046398,14]
[358735240,1745406650086,-151.0,0.00046398,14]
[358735242,1745406650097,-151.0,0.00046398,14]
[358735243,1745406650106,-151.0,0.00046398,14]
[358735245,1745406650116,-151.0,0.00046398,14]
[358735247,1745406650125,-311946.43822077,0.00046403,2]
[358735249,1745406650134,-4676.30640074,0.00046408,2]
[358735251,1745406650144,-311946.43822077,0.0004641,2]
[358735253,1745406650154,-765.19629513,0.00046412,2]
[358735255,1745406650166,-2871.62881871,0.00046416,2]
[358735257,1745406650176,-311946.43822077,0.00046419,2]
[358735259,1745406650186,-22347.75416367,0.00046421,2]
[358735261,1745406650196,-22347.75416367,0.00046421,2]
[358735263,1745406650207,-150.0,0.00046423,2]
[358735265,1745406650216,-5379.64052175,0.00046432,2]
[358735267,1745406650227,-4676.30640074,0.00046446,2]
[358735269,1745406650236,-2871.62881871,0.00046449,2]
[358735270,1745406650246,-765.19629513,0.00046453,2]
[358735272,1745406650257,-311946.43822077,0.00046457,2]
[358735273,1745406650267,-22347.75416367,0.00046459,2]
[358735274,1745406650277,-2871.62881871,0.00046459,2]
[358735275,1745406650286,-200.0,0.00046461,2]
[358735276,1745406650296,-1333.0,0.00046466,120]
[358735277,1745406650306,-200.0,0.00046474,4]
[358735278,1745406650316,-1727.98363455,0.00046475,2]
[358735279,1745406650326,-2871.62881871,0.00046475,2]
[358735280,1745406650336,-900.0,0.00046475,120]
[358735281,1745406650346,-765.19629513,0.00046477,2]
[358735282,1745406650356,-151.0,0.00046484,7]
[358735283,1745406650366,-2871.62881871,0.00046492,2]
[358735284,1745406650377,-765.19629513,0.00046497,2]
[358735285,1745406650387,-573.88,0.00046499,30]
[358735286,1745406650397,-897.3,0.00046499,30]
[358735287,1745406650407,-151.0,0.00046499,2]
[358735289,1745406650417,-365842.07734171,0.000465,120]
[358735291,1745406650427,-26154.67252636,0.000465,7]
[358735293,1745406650436,-151.0,0.000465,14]
[358735295,1745406650447,-151.0,0.000465,14]
[358735297,1745406650456,-151.0,0.000465,14]
[358735299,1745406650466,-151.0,0.000465,14]
[358735301,1745406650475,-151.0,0.000465,14]
[358735302,1745406650485,-263.382092,0.000465,14]
[358735304,1745406650495,-1306.445492,0.000465,14]
[358735306,1745406650504,-1306.445492,0.000465,14]
[358735309,1745406650515,-332.245943,0.000465,14]
[358735311,1745406650525,-332.245943,0.000465,14]
[358735313,1745406650535,-257.821998,0.000465,14]
[358735315,1745406650545,-257.821998,0.000465,14]
[358735317,1745406650557,-240.960835,0.000465,14]
[358735319,1745406650566,-240.960835,0.000465,14]
[358735320,1745406650576,-151.0,0.000465,14]
[358735323,1745406650586,-2436.382727,0.000465,14]
[358735325,1745406650596,-151.0,0.000465,14]
[358735326,1745406650606,-2436.382727,0.000465,14]
[358735328,1745406650615,-154.910191,0.000465,14]
[358735330,1745406650624,-152.219188,0.000465,14]
[358735332,1745406650634,-151.0,0.000465,14]
[358735334,1745406650644,-151.0,0.000465,14]
[358735337,1745406650654,-151.0,0.000465,14]
[358735339,1745406650664,-151.0,0.000465,14]
[358735341,1745406650673,-160.254056,0.000465,14]
[358735342,1745406650683,-160.254056,0.000465,14]
[358735344,1745406650692,-423.954629,0.000465,14]
[358735347,1745406650702,-423.954629,0.000465,14]
[358735349,1745406650712,-151.0,0.000465,14]
[358735351,1745406650722,-366.755139,0.000465,14]
[358735353,1745406650733,-366.755139,0.000465,14]
[358735355,1745406650742,-271.936841,0.000465,14]
[358735357,1745406650752,-434.891262,0.000465,14]
[358735359,1745406650761,-33164.77258111,0.000465,120]
[358735361,1745406650771,-434.891262,0.000465,14]
[358735363,1745406650780,-151.071067,0.000465,14]
[358735365,1745406650789,-151.071067,0.000465,14]
[358735367,1745406650799,-151.0,0.000465,14]
[358735368,1745406650810,-151.0,0.000465,14]
[358735371,1745406650820,-151.0,0.000465,14]
[358735373,1745406650830,-200.0,0.000465,3]
[358735375,1745406650839,-238.77858,0.000465,14]
[358735377,1745406650848,-502.096605,0.000465,14]
[358735379,1745406650858,-502.096605,0.000465,14]
[358735381,1745406650867,-1330.912874,0.000465,14]
[358735383,1745406650876,-1330.912874,0.000465,14]
[358735384,1745406650886,-519.577272,0.000465,14]
[358735386,1745406650895,-519.577272,0.000465,14]
[358735389,1745406650904,-151.0,0.000465,14]
[358735390,1745406650913,-1067.258309,0.000465,14]
[358735392,1745406650923,-1067.258309,0.000465,14]
[358735394,1745406650932,-151.0,0.000465,14]
[358735396,1745406650942,-991.327372,0.000465,14]
[358735398,1745406650951,-991.327372,0.000465,14]
[358735400,1745406650960,-151.0,0.000465,14]
[358735402,1745406650970,-734.670196,0.000465,14]
[358735404,1745406650979,-734.670196,0.000465,14]
[358735406,1745406650988,-233.281804,0.000465,14]
[358735408,1745406650997,-233.281804,0.000465,14]
[358735410,1745406651007,-346.6187,0.000465,14]
[358735412,1745406651016,-346.6187,0.000465,14]
[358735414,1745406651025,-307.395084,0.000465,14]
[358735416,1745406651035,-307.395084,0.000465,14]
[358735418,1745406651044,-151.0,0.000465,14]
[358735420,1745406651053,-151.0,0.000465,14]
[358735422,1745406651063,-151.0,0.000465,14]
[358735424,1745406651072,-906.493183,0.000465,14]
[358735426,1745406651081,-906.493183,0.000465,14]
[358735428,1745406651091,-151.0,0.000465,14]
[358735430,1745406651100,-151.855867,0.000465,14]
[358735432,1745406651109,-151.0,0.000465,14]
[358735435,1745406651119,-161.905344,0.000465,14]
[358735437,1745406651129,-739.994026,0.000465,14]
[358735438,1745406651138,-193.515066,0.000465,14]
[358735441,1745406651148,-739.994026,0.000465,14]
[358735443,1745406651157,-151.0,0.000465,14]
[358735444,1745406651169,-193.515066,0.000465,14]
[358735446,1745406651179,-812.150708,0.000465,14]
[358735448,1745406651188,-7097.485015,0.000465,14]
[358735450,1745406651197,-812.150708,0.000465,14]
[358735452,1745406651206,-7097.485015,0.000465,14]
[358735454,1745406651215,-248.771976,0.000465,14]
[358735456,1745406651224,-248.771976,0.000465,14]
[358735458,1745406651235,-153.764164,0.000465,14]
[358735460,1745406651244,-152.461522,0.000465,14]
[358735462,1745406651253,-151.0,0.000465,14]
[358735464,1745406651262,-151.0,0.000465,14]
[358735466,1745406651271,-295.016817,0.000465,14]
[358735468,1745406651280,-295.016817,0.000465,14]